[Event "Titled Tuesday Blitz January 04 2022"]
[White "Aghasiyev, Kamal"]
[Black "Thavandiran, Shiyam"]
[WhiteFideId "13402854"]
[BlackFideId "2605058"]
[WhiteElo "2210"]
[BlackElo "2357"]
[Result "0-1"]
[Round "11"]
[TimeControl "180+1"]
[Date "2022.01.04"]
[WhiteClock "0:00:01"]
[BlackClock "0:00:05"]

1. d4 {[%clk 0:02:59]}  Nf6 {[%clk 0:02:58]} 2. c4 {[%clk 0:02:58]}  e6 {[%clk 0:02:58]} 3. Nc3 {[%clk 0:02:58]}  Bb4 {[%clk 0:02:56]} 4. e3 {[%clk 0:02:58]}  O-O {[%clk 0:02:56]} 5. Bd2 {[%clk 0:02:58]}  b6 {[%clk 0:02:55]} 6. Nf3 {[%clk 0:02:57]}  Bb7 {[%clk 0:02:55]} 7. Rc1 {[%clk 0:02:56]}  d6 {[%clk 0:02:53]} 8. Bd3 {[%clk 0:02:48]}  Nbd7 {[%clk 0:02:50]} 9. a3 {[%clk 0:02:47]}  Bxc3 {[%clk 0:02:50]} 10. Bxc3 {[%clk 0:02:47]}  Ne4 {[%clk 0:02:47]} 11. O-O {[%clk 0:02:38]}  f5 {[%clk 0:02:47]} 12. d5 {[%clk 0:02:24]}  exd5 {[%clk 0:02:27]} 13. Nd4 {[%clk 0:02:19]}  Qe7 {[%clk 0:02:14]} 14. cxd5 {[%clk 0:02:03]}  Bxd5 {[%clk 0:02:13]} 15. Bb5 {[%clk 0:01:53]}  Bb7 {[%clk 0:01:37]} 16. Bc6 {[%clk 0:01:40]}  Bxc6 {[%clk 0:01:34]} 17. Nxc6 {[%clk 0:01:40]}  Qf7 {[%clk 0:01:30]} 18. Bd4 {[%clk 0:01:38]}  a5 {[%clk 0:01:26]} 19. b4 {[%clk 0:01:26]}  axb4 {[%clk 0:01:25]} 20. axb4 {[%clk 0:01:27]}  Ra2 {[%clk 0:01:22]} 21. Rc2 {[%clk 0:01:24]}  Rfa8 {[%clk 0:01:18]} 22. Rxa2 {[%clk 0:01:20]}  Rxa2 {[%clk 0:01:19]} 23. f3 {[%clk 0:00:56]}  Nef6 {[%clk 0:01:06]} 24. Qb1 {[%clk 0:00:49]}  g6 {[%clk 0:00:47]} 25. e4 {[%clk 0:00:37]}  Re2 {[%clk 0:00:26]} 26. exf5 {[%clk 0:00:24]}  Qd5 {[%clk 0:00:25]} 27. Qd1 {[%clk 0:00:12]}  Re8 {[%clk 0:00:20]} 28. Bxf6 {[%clk 0:00:06]}  Qxc6 {[%clk 0:00:20]} 29. Ba1 {[%clk 0:00:03]}  Qc4 {[%clk 0:00:14]} 30. fxg6 {[%clk 0:00:03]}  hxg6 {[%clk 0:00:15]} 31. Qd2 {[%clk 0:00:02]}  Ne5 {[%clk 0:00:08]} 32. Qg5 {[%clk 0:00:02]}  Qe6 {[%clk 0:00:07]} 33. f4 {[%clk 0:00:01]}  Ng4 {[%clk 0:00:02]} 34. f5 {[%clk 0:00:01]}  Qe3+ {[%clk 0:00:03]} 35. Qxe3 {[%clk 0:00:01]}  Nxe3 {[%clk 0:00:04]} 36. Rc1 {[%clk 0:00:01]}  Nxf5 {[%clk 0:00:03]} 37. Rxc7 {[%clk 0:00:02]}  Re1+ {[%clk 0:00:03]} 38. Kf2 {[%clk 0:00:02]}  Rxa1 {[%clk 0:00:04]} 39. g4 {[%clk 0:00:03]}  Nd4 {[%clk 0:00:04]} 40. h4 {[%clk 0:00:03]}  Ne6 {[%clk 0:00:05]} 41. Rb7 {[%clk 0:00:03]}  Rd1 {[%clk 0:00:04]} 42. Rxb6 {[%clk 0:00:03]}  Rd4 {[%clk 0:00:05]} 43. h5 {[%clk 0:00:02]}  g5 {[%clk 0:00:05]} 44. Kf3 {[%clk 0:00:01]}  Kg7 {[%clk 0:00:05]} 0-1


[Site "https://www.chess.com"]

[Event "Titled Tuesday Blitz January 04 2022"]
[White "Andreikin, Dmitry"]
[Black "Jobava, Baadur"]
[WhiteFideId "4158814"]
[BlackFideId "13601520"]
[WhiteElo "2736"]
[BlackElo "2617"]
[Result "0-1"]
[Round "11"]
[TimeControl "180+1"]
[Date "2022.01.04"]
[WhiteClock "0:00:01"]
[BlackClock "0:00:43"]

1. d4 {[%clk 0:03:00]}  d5 {[%clk 0:02:59]} 2. c4 {[%clk 0:03:00]}  dxc4 {[%clk 0:03:00]} 3. e3 {[%clk 0:02:59]}  e5 {[%clk 0:02:58]} 4. Bxc4 {[%clk 0:02:58]}  exd4 {[%clk 0:02:57]} 5. exd4 {[%clk 0:02:57]}  Nf6 {[%clk 0:02:57]} 6. Nf3 {[%clk 0:02:57]}  Bd6 {[%clk 0:02:57]} 7. O-O {[%clk 0:02:56]}  O-O {[%clk 0:02:57]} 8. Nc3 {[%clk 0:02:57]}  Bg4 {[%clk 0:02:55]} 9. h3 {[%clk 0:02:54]}  Bh5 {[%clk 0:02:55]} 10. g4 {[%clk 0:02:53]}  Bg6 {[%clk 0:02:55]} 11. Ne5 {[%clk 0:02:53]}  Nc6 {[%clk 0:02:51]} 12. f4 {[%clk 0:02:49]}  Nd7 {[%clk 0:01:49]} 13. Nxc6 {[%clk 0:02:38]}  bxc6 {[%clk 0:01:48]} 14. f5 {[%clk 0:02:38]}  Qh4 {[%clk 0:01:38]} 15. Qf3 {[%clk 0:02:37]}  Bxf5 {[%clk 0:01:38]} 16. Be3 {[%clk 0:01:57]}  Bg6 {[%clk 0:01:35]} 17. Bf2 {[%clk 0:01:55]}  Qf6 {[%clk 0:01:30]} 18. Qg2 {[%clk 0:01:38]}  Rae8 {[%clk 0:01:26]} 19. a3 {[%clk 0:01:27]}  Nb6 {[%clk 0:01:26]} 20. Bb3 {[%clk 0:01:26]}  Bd3 {[%clk 0:01:25]} 21. Rfe1 {[%clk 0:01:21]}  Qg6 {[%clk 0:01:18]} 22. Kh1 {[%clk 0:01:09]}  h5 {[%clk 0:01:07]} 23. Rxe8 {[%clk 0:00:58]}  Rxe8 {[%clk 0:01:07]} 24. Qxc6 {[%clk 0:00:58]}  Re2 {[%clk 0:01:01]} 25. Rf1 {[%clk 0:00:35]}  Rxb2 {[%clk 0:00:59]} 26. Qe8+ {[%clk 0:00:34]}  Bf8 {[%clk 0:00:57]} 27. Bh4 {[%clk 0:00:13]}  Bxf1 {[%clk 0:00:56]} 28. Be7 {[%clk 0:00:12]}  Rxb3 {[%clk 0:00:44]} 29. Bxf8 {[%clk 0:00:05]}  Kh7 {[%clk 0:00:42]} 30. Ne4 {[%clk 0:00:04]}  Rxh3+ {[%clk 0:00:41]} 31. Kg1 {[%clk 0:00:04]}  Qxg4+ {[%clk 0:00:42]} 32. Kxf1 {[%clk 0:00:04]}  Qf3+ {[%clk 0:00:40]} 33. Ke1 {[%clk 0:00:02]}  Rh1+ {[%clk 0:00:41]} 34. Kd2 {[%clk 0:00:02]}  Rd1+ {[%clk 0:00:42]} 35. Kc2 {[%clk 0:00:02]}  Qd3+ {[%clk 0:00:43]} 36. Kb2 {[%clk 0:00:03]}  Nc4+ {[%clk 0:00:42]} 37. Ka2 {[%clk 0:00:01]}  Qb1# {[%clk 0:00:43]} 0-1


[Site "https://www.chess.com"]

[Event "Titled Tuesday Blitz January 04 2022"]
[White "Bellahcene, Bilel"]
[Black "Maksimovic, Bojan"]
[WhiteFideId "696358"]
[BlackFideId "14408120"]
[WhiteElo "2562"]
[BlackElo "2450"]
[Result "0-1"]
[Round "11"]
[TimeControl "180+1"]
[Date "2022.01.04"]
[WhiteClock "0:00:15"]
[BlackClock "0:00:17"]

1. e4 {[%clk 0:03:00]}  c5 {[%clk 0:02:59]} 2. Nf3 {[%clk 0:03:00]}  Nc6 {[%clk 0:03:00]} 3. d4 {[%clk 0:03:00]}  cxd4 {[%clk 0:03:01]} 4. Nxd4 {[%clk 0:03:00]}  Nf6 {[%clk 0:03:01]} 5. Nc3 {[%clk 0:03:00]}  e5 {[%clk 0:03:02]} 6. Ndb5 {[%clk 0:03:00]}  h6 {[%clk 0:03:01]} 7. Nd6+ {[%clk 0:02:43]}  Bxd6 {[%clk 0:03:01]} 8. Qxd6 {[%clk 0:02:44]}  Qe7 {[%clk 0:03:02]} 9. Qd1 {[%clk 0:02:06]}  d6 {[%clk 0:03:01]} 10. Bc4 {[%clk 0:02:06]}  O-O {[%clk 0:02:58]} 11. O-O {[%clk 0:02:06]}  Be6 {[%clk 0:02:58]} 12. Bd5 {[%clk 0:02:05]}  Rac8 {[%clk 0:02:51]} 13. a3 {[%clk 0:02:00]}  Bxd5 {[%clk 0:02:46]} 14. Nxd5 {[%clk 0:01:59]}  Nxd5 {[%clk 0:02:46]} 15. Qxd5 {[%clk 0:02:00]}  Nd4 {[%clk 0:02:40]} 16. c3 {[%clk 0:01:56]}  Rc5 {[%clk 0:02:02]} 17. Qa2 {[%clk 0:01:46]}  Ne2+ {[%clk 0:01:54]} 18. Kh1 {[%clk 0:01:45]}  Nxc1 {[%clk 0:01:54]} 19. Raxc1 {[%clk 0:01:45]}  Qe6 {[%clk 0:01:54]} 20. Qxe6 {[%clk 0:01:17]}  fxe6 {[%clk 0:01:55]} 21. Rcd1 {[%clk 0:01:17]}  Rd8 {[%clk 0:01:52]} 22. Rfe1 {[%clk 0:01:14]}  Rc4 {[%clk 0:01:36]} 23. f3 {[%clk 0:01:11]}  Kf7 {[%clk 0:01:35]} 24. Kg1 {[%clk 0:01:11]}  Ke7 {[%clk 0:01:36]} 25. Kf2 {[%clk 0:01:11]}  b5 {[%clk 0:01:34]} 26. Rd2 {[%clk 0:01:05]}  a5 {[%clk 0:01:34]} 27. Re3 {[%clk 0:00:54]}  Ra8 {[%clk 0:01:20]} 28. Red3 {[%clk 0:00:53]}  Ra6 {[%clk 0:01:20]} 29. Rc2 {[%clk 0:00:45]}  b4 {[%clk 0:01:07]} 30. axb4 {[%clk 0:00:34]}  axb4 {[%clk 0:01:06]} 31. b3 {[%clk 0:00:34]}  Rc8 {[%clk 0:01:04]} 32. c4 {[%clk 0:00:33]}  Ra1 {[%clk 0:00:56]} 33. Rcd2 {[%clk 0:00:31]}  Rc6 {[%clk 0:00:56]} 34. Kg3 {[%clk 0:00:30]}  g6 {[%clk 0:00:48]} 35. h4 {[%clk 0:00:28]}  Raa6 {[%clk 0:00:48]} 36. Kg4 {[%clk 0:00:27]}  Kf6 {[%clk 0:00:46]} 37. g3 {[%clk 0:00:20]}  Ke7 {[%clk 0:00:32]} 38. Kh3 {[%clk 0:00:19]}  Ra1 {[%clk 0:00:30]} 39. Kg2 {[%clk 0:00:19]}  Rc1 {[%clk 0:00:26]} 40. Kf2 {[%clk 0:00:18]}  Ra6 {[%clk 0:00:25]} 41. Kg2 {[%clk 0:00:17]}  Rb1 {[%clk 0:00:18]} 42. Kf2 {[%clk 0:00:17]}  Rc1 {[%clk 0:00:13]} 43. g4 {[%clk 0:00:17]}  Rh1 {[%clk 0:00:12]} 44. Kg3 {[%clk 0:00:17]}  Rb1 {[%clk 0:00:12]} 45. g5 {[%clk 0:00:17]}  h5 {[%clk 0:00:12]} 46. Kf2 {[%clk 0:00:17]}  Rc6 {[%clk 0:00:12]} 47. Kg3 {[%clk 0:00:17]}  Ra1 {[%clk 0:00:12]} 48. Kf2 {[%clk 0:00:17]}  Ra5 {[%clk 0:00:12]} 49. Kg3 {[%clk 0:00:17]}  Kd7 {[%clk 0:00:12]} 50. Kg2 {[%clk 0:00:17]}  Kc7 {[%clk 0:00:13]} 51. Kf2 {[%clk 0:00:17]}  Ra8 {[%clk 0:00:13]} 52. Kg3 {[%clk 0:00:17]}  Ra5 {[%clk 0:00:13]} 53. Kg2 {[%clk 0:00:18]}  Ra1 {[%clk 0:00:13]} 54. Kg3 {[%clk 0:00:18]}  Rg1+ {[%clk 0:00:13]} 55. Kf2 {[%clk 0:00:18]}  Rh1 {[%clk 0:00:12]} 56. Kg3 {[%clk 0:00:19]}  Ra6 {[%clk 0:00:13]} 57. Re2 {[%clk 0:00:13]}  Rc1 {[%clk 0:00:11]} 58. Red2 {[%clk 0:00:13]}  Rb1 {[%clk 0:00:11]} 59. Kg2 {[%clk 0:00:13]}  Rba1 {[%clk 0:00:11]} 60. Re2 {[%clk 0:00:13]}  R1a2 {[%clk 0:00:11]} 61. Re3 {[%clk 0:00:12]}  Rxe2+ {[%clk 0:00:11]} 62. Rxe2 {[%clk 0:00:12]}  Kc6 {[%clk 0:00:11]} 63. Kf2 {[%clk 0:00:12]}  Kc5 {[%clk 0:00:12]} 64. Ke3 {[%clk 0:00:13]}  Ra1 {[%clk 0:00:12]} 65. f4 {[%clk 0:00:10]}  exf4+ {[%clk 0:00:09]} 66. Kxf4 {[%clk 0:00:11]}  Rb1 {[%clk 0:00:09]} 67. Re3 {[%clk 0:00:11]}  Rf1+ {[%clk 0:00:08]} 68. Kg3 {[%clk 0:00:09]}  Kd4 {[%clk 0:00:08]} 69. Re2 {[%clk 0:00:08]}  Rb1 {[%clk 0:00:08]} 70. Rf2 {[%clk 0:00:08]}  Rxb3+ {[%clk 0:00:08]} 71. Kg2 {[%clk 0:00:08]}  Kxe4 {[%clk 0:00:08]} 72. Rf6 {[%clk 0:00:09]}  Ke5 {[%clk 0:00:08]} 73. Rxg6 {[%clk 0:00:09]}  Ra3 {[%clk 0:00:08]} 74. Rf6 {[%clk 0:00:09]}  b3 {[%clk 0:00:08]} 75. Rf2 {[%clk 0:00:07]}  Ra2 {[%clk 0:00:08]} 76. g6 {[%clk 0:00:08]}  Rxf2+ {[%clk 0:00:08]} 77. Kxf2 {[%clk 0:00:08]}  Kf6 {[%clk 0:00:09]} 78. c5 {[%clk 0:00:09]}  dxc5 {[%clk 0:00:09]} 79. g7 {[%clk 0:00:09]}  Kxg7 {[%clk 0:00:09]} 80. Ke3 {[%clk 0:00:10]}  b2 {[%clk 0:00:10]} 81. Kd3 {[%clk 0:00:11]}  b1=Q+ {[%clk 0:00:11]} 82. Kc4 {[%clk 0:00:11]}  Qf5 {[%clk 0:00:12]} 83. Kb5 {[%clk 0:00:11]}  Kf7 {[%clk 0:00:13]} 84. Kc6 {[%clk 0:00:12]}  Kf8 {[%clk 0:00:13]} 85. Kb5 {[%clk 0:00:13]}  Kg8 {[%clk 0:00:14]} 86. Kb6 {[%clk 0:00:14]}  Kh8 {[%clk 0:00:15]} 87. Kc6 {[%clk 0:00:14]}  Kh7 {[%clk 0:00:16]} 88. Kb5 {[%clk 0:00:15]}  Kh6 {[%clk 0:00:17]} 0-1


[Site "https://www.chess.com"]

[Event "Titled Tuesday Blitz January 04 2022"]
[White "Chizhikov, Vladislav"]
[Black "Vakhlamov, Igor L."]
[WhiteFideId "4178157"]
[BlackFideId "24126748"]
[WhiteElo "2120"]
[BlackElo "2401"]
[Result "1-0"]
[Round "11"]
[TimeControl "180+1"]
[Date "2022.01.04"]
[WhiteClock "0:00:41"]
[BlackClock "0:00:01"]

1. e4 {[%clk 0:03:00]}  c5 {[%clk 0:02:56]} 2. Nf3 {[%clk 0:03:00]}  Nc6 {[%clk 0:02:56]} 3. b3 {[%clk 0:02:59]}  Nf6 {[%clk 0:02:51]} 4. e5 {[%clk 0:02:58]}  Nd5 {[%clk 0:02:51]} 5. Bb2 {[%clk 0:02:59]}  d6 {[%clk 0:02:51]} 6. c4 {[%clk 0:02:58]}  Nc7 {[%clk 0:02:49]} 7. d4 {[%clk 0:02:54]}  cxd4 {[%clk 0:02:47]} 8. exd6 {[%clk 0:02:53]}  Qxd6 {[%clk 0:02:47]} 9. Nxd4 {[%clk 0:02:52]}  Nxd4 {[%clk 0:02:42]} 10. Qxd4 {[%clk 0:02:51]}  Qxd4 {[%clk 0:02:36]} 11. Bxd4 {[%clk 0:02:50]}  b6 {[%clk 0:02:34]} 12. Nc3 {[%clk 0:02:41]}  Bb7 {[%clk 0:02:34]} 13. O-O-O {[%clk 0:02:41]}  O-O-O {[%clk 0:02:33]} 14. Be2 {[%clk 0:02:30]}  f6 {[%clk 0:02:21]} 15. Bg4+ {[%clk 0:02:22]}  e6 {[%clk 0:02:19]} 16. Bh3 {[%clk 0:02:21]}  Ba3+ {[%clk 0:02:13]} 17. Kc2 {[%clk 0:02:19]}  Kb8 {[%clk 0:02:05]} 18. f4 {[%clk 0:02:13]}  h5 {[%clk 0:02:00]} 19. Be3 {[%clk 0:02:12]}  Bc6 {[%clk 0:01:49]} 20. Rxd8+ {[%clk 0:02:07]}  Rxd8 {[%clk 0:01:49]} 21. Rd1 {[%clk 0:02:07]}  Rxd1 {[%clk 0:01:42]} 22. Kxd1 {[%clk 0:02:08]}  Bb4 {[%clk 0:01:35]} 23. Kc2 {[%clk 0:02:04]}  Kb7 {[%clk 0:01:29]} 24. g3 {[%clk 0:02:03]}  a6 {[%clk 0:01:23]} 25. Bf1 {[%clk 0:02:02]}  Bf3 {[%clk 0:01:09]} 26. Bd3 {[%clk 0:01:58]}  Kc6 {[%clk 0:01:07]} 27. Bg6 {[%clk 0:01:51]}  Bd6 {[%clk 0:01:01]} 28. Ne4 {[%clk 0:01:49]}  Be7 {[%clk 0:00:59]} 29. Nd2 {[%clk 0:01:48]}  Bg4 {[%clk 0:00:58]} 30. Be4+ {[%clk 0:01:48]}  Kd7 {[%clk 0:00:57]} 31. Bxb6 {[%clk 0:01:47]}  f5 {[%clk 0:00:55]} 32. Bb7 {[%clk 0:01:45]}  g5 {[%clk 0:00:46]} 33. fxg5 {[%clk 0:01:34]}  Bxg5 {[%clk 0:00:47]} 34. b4 {[%clk 0:01:33]}  e5 {[%clk 0:00:43]} 35. a4 {[%clk 0:01:30]}  h4 {[%clk 0:00:40]} 36. b5 {[%clk 0:01:29]}  axb5 {[%clk 0:00:39]} 37. cxb5 {[%clk 0:01:30]}  Be2 {[%clk 0:00:35]} 38. Kc3 {[%clk 0:01:27]}  hxg3 {[%clk 0:00:34]} 39. hxg3 {[%clk 0:01:27]}  e4 {[%clk 0:00:33]} 40. Nc4 {[%clk 0:01:25]}  Bf6+ {[%clk 0:00:31]} 41. Kb4 {[%clk 0:01:24]}  Be7+ {[%clk 0:00:28]} 42. Bc5 {[%clk 0:01:24]}  Bg5 {[%clk 0:00:10]} 43. Bc6+ {[%clk 0:01:23]}  Kc8 {[%clk 0:00:09]} 44. Nd6+ {[%clk 0:01:23]}  Kb8 {[%clk 0:00:08]} 45. Nxf5 {[%clk 0:01:21]}  Bd2+ {[%clk 0:00:06]} 46. Ka3 {[%clk 0:01:22]}  Bc1+ {[%clk 0:00:06]} 47. Ka2 {[%clk 0:01:21]}  Bd2 {[%clk 0:00:07]} 48. Ne3 {[%clk 0:01:18]}  Bd3 {[%clk 0:00:06]} 49. g4 {[%clk 0:01:16]}  Ne6 {[%clk 0:00:07]} 50. Bb6 {[%clk 0:01:15]}  Bb4 {[%clk 0:00:04]} 51. a5 {[%clk 0:01:13]}  Nc5 {[%clk 0:00:04]} 52. a6 {[%clk 0:01:09]}  Nxa6 {[%clk 0:00:04]} 53. bxa6 {[%clk 0:01:09]}  Bxa6 {[%clk 0:00:05]} 54. Bxe4 {[%clk 0:01:07]}  Be7 {[%clk 0:00:03]} 55. Bf5 {[%clk 0:01:06]}  Kb7 {[%clk 0:00:03]} 56. Bd4 {[%clk 0:01:05]}  Kc6 {[%clk 0:00:03]} 57. Kb3 {[%clk 0:01:02]}  Be2 {[%clk 0:00:04]} 58. Kc3 {[%clk 0:01:00]}  Bg5 {[%clk 0:00:04]} 59. Be4+ {[%clk 0:01:00]}  Kd6 {[%clk 0:00:04]} 60. Nc4+ {[%clk 0:01:00]}  Ke6 {[%clk 0:00:03]} 61. Bf5+ {[%clk 0:00:59]}  Kd5 {[%clk 0:00:02]} 62. Ne3+ {[%clk 0:00:59]}  Kd6 {[%clk 0:00:03]} 63. Ba7 {[%clk 0:00:58]}  Kc7 {[%clk 0:00:03]} 64. Nd5+ {[%clk 0:00:56]}  Kd6 {[%clk 0:00:03]} 65. Kd4 {[%clk 0:00:54]}  Bf3 {[%clk 0:00:03]} 66. Bb8+ {[%clk 0:00:53]}  Kc6 {[%clk 0:00:04]} 67. Nc3 {[%clk 0:00:50]}  Bf6+ {[%clk 0:00:03]} 68. Be5 {[%clk 0:00:51]}  Bg5 {[%clk 0:00:04]} 69. Ne4 {[%clk 0:00:50]}  Bd8 {[%clk 0:00:02]} 70. g5 {[%clk 0:00:48]}  Bh5 {[%clk 0:00:02]} 71. g6 {[%clk 0:00:47]}  Be7 {[%clk 0:00:02]} 72. g7 {[%clk 0:00:46]}  Bf7 {[%clk 0:00:03]} 73. Bh7 {[%clk 0:00:46]}  Ba3 {[%clk 0:00:01]} 74. Ke3 {[%clk 0:00:44]}  Be7 {[%clk 0:00:01]} 75. Bf6 {[%clk 0:00:42]}  Bb4 {[%clk 0:00:01]} 76. Kf4 {[%clk 0:00:41]}  Kd5 {[%clk 0:00:01]} 77. Ng5 {[%clk 0:00:41]} 1-0


[Site "https://www.chess.com"]

[Event "Titled Tuesday Blitz January 04 2022"]
[White "Danada, Tomas"]
[Black "Murzin, Volodar"]
[WhiteFideId "14919362"]
[BlackFideId "44155573"]
[WhiteElo "2051"]
[BlackElo "2585"]
[Result "1-0"]
[Round "11"]
[TimeControl "180+1"]
[Date "2022.01.04"]
[WhiteClock "0:00:21"]
[BlackClock "0:00:01"]

1. d4 {[%clk 0:03:00]}  Nf6 {[%clk 0:02:58]} 2. c4 {[%clk 0:03:01]}  g6 {[%clk 0:02:59]} 3. Nc3 {[%clk 0:03:00]}  Bg7 {[%clk 0:02:59]} 4. e4 {[%clk 0:02:59]}  O-O {[%clk 0:03:00]} 5. Nf3 {[%clk 0:02:57]}  d6 {[%clk 0:03:00]} 6. Be2 {[%clk 0:02:55]}  e5 {[%clk 0:03:00]} 7. O-O {[%clk 0:02:54]}  Nc6 {[%clk 0:03:00]} 8. d5 {[%clk 0:02:54]}  Ne7 {[%clk 0:03:00]} 9. Ne1 {[%clk 0:02:55]}  Nd7 {[%clk 0:02:41]} 10. Be3 {[%clk 0:02:55]}  f5 {[%clk 0:02:41]} 11. f3 {[%clk 0:02:55]}  f4 {[%clk 0:02:42]} 12. Bf2 {[%clk 0:02:56]}  g5 {[%clk 0:02:42]} 13. Rc1 {[%clk 0:02:56]}  Rf6 {[%clk 0:02:43]} 14. Nd3 {[%clk 0:02:55]}  Ng6 {[%clk 0:02:43]} 15. c5 {[%clk 0:02:53]}  a6 {[%clk 0:02:43]} 16. Qb3 {[%clk 0:02:52]}  Rb8 {[%clk 0:02:09]} 17. Rfd1 {[%clk 0:02:49]}  Bf8 {[%clk 0:02:05]} 18. Na4 {[%clk 0:02:42]}  Kh8 {[%clk 0:01:34]} 19. h3 {[%clk 0:02:40]}  h5 {[%clk 0:01:33]} 20. Kf1 {[%clk 0:02:39]}  Nh4 {[%clk 0:01:31]} 21. Qc3 {[%clk 0:02:26]}  Rg6 {[%clk 0:01:24]} 22. Bxh4 {[%clk 0:02:22]}  gxh4 {[%clk 0:01:23]} 23. Nxf4 {[%clk 0:02:23]}  Rg3 {[%clk 0:01:15]} 24. Ne6 {[%clk 0:02:11]}  Qf6 {[%clk 0:01:14]} 25. Nxf8 {[%clk 0:01:58]}  Nxf8 {[%clk 0:01:06]} 26. cxd6 {[%clk 0:01:58]}  cxd6 {[%clk 0:01:07]} 27. Qc7 {[%clk 0:01:58]}  Qg5 {[%clk 0:00:29]} 28. Qxd6 {[%clk 0:01:09]}  Be6 {[%clk 0:00:19]} 29. Qxb8 {[%clk 0:01:02]}  Rxg2 {[%clk 0:00:19]} 30. Qxf8+ {[%clk 0:00:51]}  Bg8 {[%clk 0:00:18]} 31. Qc5 {[%clk 0:00:27]}  Qg3 {[%clk 0:00:13]} 32. Qe3 {[%clk 0:00:27]}  Kg7 {[%clk 0:00:04]} 33. Rc7+ {[%clk 0:00:23]}  Kg6 {[%clk 0:00:04]} 34. Qb6+ {[%clk 0:00:21]}  Kg5 {[%clk 0:00:01]} 35. Rg7+ {[%clk 0:00:21]} 1-0


[Site "https://www.chess.com"]

[Event "Titled Tuesday Blitz January 04 2022"]
[White "Darini, Pouria"]
[Black "Tsydypov, Zhamsaran"]
[WhiteFideId "12502200"]
[BlackFideId "4108566"]
[WhiteElo "2489"]
[BlackElo "2614"]
[Result "0-1"]
[Round "11"]
[TimeControl "180+1"]
[Date "2022.01.04"]
[WhiteClock "0:00:02"]
[BlackClock "0:00:36"]

1. d4 {[%clk 0:03:00]}  Nf6 {[%clk 0:02:57]} 2. Bf4 {[%clk 0:03:01]}  c5 {[%clk 0:02:57]} 3. e3 {[%clk 0:03:01]}  Qb6 {[%clk 0:02:57]} 4. Nc3 {[%clk 0:03:01]}  d6 {[%clk 0:02:57]} 5. Rb1 {[%clk 0:02:47]}  g6 {[%clk 0:02:57]} 6. Nf3 {[%clk 0:02:48]}  Bg7 {[%clk 0:02:57]} 7. Bb5+ {[%clk 0:02:48]}  Bd7 {[%clk 0:02:52]} 8. Bxd7+ {[%clk 0:02:41]}  Nbxd7 {[%clk 0:02:52]} 9. O-O {[%clk 0:02:42]}  O-O {[%clk 0:02:52]} 10. h3 {[%clk 0:02:39]}  Qa6 {[%clk 0:02:50]} 11. a3 {[%clk 0:02:38]}  Rfc8 {[%clk 0:02:45]} 12. Re1 {[%clk 0:02:35]}  b5 {[%clk 0:02:44]} 13. Qe2 {[%clk 0:02:35]}  c4 {[%clk 0:02:37]} 14. e4 {[%clk 0:02:35]}  e6 {[%clk 0:02:33]} 15. Bxd6 {[%clk 0:02:30]}  Qxd6 {[%clk 0:02:32]} 16. e5 {[%clk 0:02:31]}  Qb6 {[%clk 0:02:32]} 17. exf6 {[%clk 0:02:31]}  Nxf6 {[%clk 0:02:32]} 18. Rbd1 {[%clk 0:02:24]}  Rd8 {[%clk 0:02:31]} 19. Ne4 {[%clk 0:02:19]}  Nxe4 {[%clk 0:02:31]} 20. Qxe4 {[%clk 0:02:19]}  Rd5 {[%clk 0:02:31]} 21. c3 {[%clk 0:02:19]}  a5 {[%clk 0:02:28]} 22. Ra1 {[%clk 0:01:52]}  Rad8 {[%clk 0:02:25]} 23. Qe2 {[%clk 0:01:51]}  Rc8 {[%clk 0:02:18]} 24. Qe4 {[%clk 0:01:31]}  b4 {[%clk 0:02:15]} 25. axb4 {[%clk 0:01:31]}  axb4 {[%clk 0:02:15]} 26. Qe2 {[%clk 0:01:10]}  Ra5 {[%clk 0:02:09]} 27. Rxa5 {[%clk 0:00:42]}  Qxa5 {[%clk 0:02:09]} 28. cxb4 {[%clk 0:00:25]}  Qxb4 {[%clk 0:02:08]} 29. Rc1 {[%clk 0:00:25]}  Qb3 {[%clk 0:01:11]} 30. Rc3 {[%clk 0:00:25]}  Qa2 {[%clk 0:01:11]} 31. Ne5 {[%clk 0:00:19]}  Bxe5 {[%clk 0:01:06]} 32. dxe5 {[%clk 0:00:20]}  Kg7 {[%clk 0:01:04]} 33. Qc2 {[%clk 0:00:10]}  Rb8 {[%clk 0:00:57]} 34. Rf3 {[%clk 0:00:03]}  Rxb2 {[%clk 0:00:55]} 35. Qc3 {[%clk 0:00:02]}  Rb3 {[%clk 0:00:52]} 36. Qd4 {[%clk 0:00:01]}  Rxf3 {[%clk 0:00:51]} 37. gxf3 {[%clk 0:00:02]}  Qb3 {[%clk 0:00:38]} 38. Qf4 {[%clk 0:00:01]}  Qd3 {[%clk 0:00:38]} 39. Kg2 {[%clk 0:00:01]}  c3 {[%clk 0:00:37]} 40. Qf6+ {[%clk 0:00:02]}  Kg8 {[%clk 0:00:37]} 41. Qd8+ {[%clk 0:00:02]}  Qxd8 {[%clk 0:00:36]} 0-1


[Site "https://www.chess.com"]